bitfinex-derivatives/quotes_BTCF0:USTF0_20241010
["timestamp","ask_amount","ask_price","bid_price","bid_amount"]
[1728567678294,0.082582,60898.0,60892.0,0.3622]
[1728567678295,0.082189,60893.0,60892.0,0.3622]
[1728567678496,0.362589,60893.0,60892.0,0.3622]
[1728567678698,0.362589,60893.0,60892.0,0.0014]
[1728567678997,0.362589,60893.0,60892.0,0.08259]
[1728567679203,0.362589,60893.0,60892.0,0.08759]
[1728567679807,0.362589,60893.0,60892.0,0.08459]
[1728567680103,0.362589,60893.0,60892.0,0.0024]
[1728567680303,0.723389,60893.0,60892.0,0.0004]
[1728567680504,0.724389,60893.0,60892.0,0.0004]
[1728567680806,0.724389,60893.0,60881.0,0.0004]
[1728567680807,0.3622,60893.0,60881.0,0.0004]
[1728567681101,0.3622,60893.0,60889.0,0.082191]
[1728567681102,0.082194,60890.0,60889.0,0.082191]
[1728567681404,0.082204,60884.0,60883.0,0.082201]
[1728567681601,0.362604,60884.0,60883.0,0.082201]
[1728567682504,0.082604,60884.0,60883.0,0.082201]
[1728567683902,0.364604,60884.0,60883.0,0.088201]
[1728567684593,0.3234737,60884.0,60883.0,0.088201]
[1728567684804,0.3234737,60884.0,60883.0,0.088601]
[1728567685309,0.3244737,60884.0,60883.0,0.088601]
[1728567685507,0.0444737,60884.0,60883.0,0.087601]
[1728567685709,0.001,60884.0,60883.0,0.087601]
[1728567686208,0.082195,60889.0,60888.0,0.082195]
[1728567686705,0.3612,60893.0,60890.0,0.08219]
[1728567686706,0.082192,60891.0,60890.0,0.08219]
[1728567687193,0.362192,60891.0,60890.0,0.08219]
[1728567688206,0.443389,60893.0,60892.0,0.08219]
[1728567688598,0.0004,60893.0,60892.0,0.08219]
[1728567688807,0.0004,60893.0,60892.0,0.44299]
[1728567689204,0.0004,60893.0,60892.0,0.56645994]
[1728567689394,0.0004,60893.0,60892.0,0.64829102]
[1728567689598,0.0044,60893.0,60892.0,0.71328613]
[1728567689795,0.0044,60893.0,60892.0,0.66465288]
[1728567690206,0.366589,60893.0,60892.0,0.64829427]
[1728567690396,0.366589,60893.0,60892.0,0.08219]
[1728567690600,0.082191,60891.0,60890.0,0.082193]
[1728567690914,0.082591,60891.0,60890.0,0.082193]
[1728567692298,0.083591,60891.0,60890.0,0.082193]
[1728567692510,0.083591,60891.0,60888.0,0.08183433]
[1728567692711,0.362594,60889.0,60888.0,0.08183433]
[1728567693009,0.362594,60889.0,60887.0,0.08183433]
[1728567693010,0.082195,60888.0,60887.0,0.08183433]
[1728567693200,0.082595,60888.0,60887.0,0.20577776]
[1728567693708,0.082595,60888.0,60887.0,0.20614043]
[1728567693908,0.082595,60888.0,60887.0,0.28831274]
[1728567694301,0.082595,60888.0,60887.0,0.20628126]
[1728567694907,0.082595,60888.0,60887.0,0.20828126]
[1728567695309,0.082595,60888.0,60887.0,0.21028126]
[1728567696909,0.082595,60888.0,60887.0,0.20928126]
[1728567697109,0.082595,60888.0,60887.0,0.12708426]
[1728567697710,0.082595,60888.0,60887.0,0.08508742]
[1728567697910,0.082595,60888.0,60887.0,0.003]
[1728567698617,0.0822,60885.0,60883.0,0.08248742]
[1728567698804,0.082204,60882.0,60876.0,0.0004]
[1728567699005,0.08261,60877.0,60876.0,0.082612]
[1728567701917,0.08361,60877.0,60876.0,0.0124]
[1728567702118,0.08361,60877.0,60876.0,0.094612]
[1728567702518,0.08361,60877.0,60876.0,0.0124]
[1728567703212,0.08461,60877.0,60876.0,0.0134]
[1728567703813,0.08461,60877.0,60876.0,0.095612]
[1728567704615,0.08461,60877.0,60876.0,0.0134]
[1728567705525,0.08461,60877.0,60876.0,0.095612]
[1728567708127,0.08461,60877.0,60876.0,0.0134]
[1728567708319,0.0024,60877.0,60876.0,0.58203051]
[1728567708514,0.082209,60879.0,60878.0,0.082204]
[1728567708711,0.082209,60879.0,60878.0,0.28850488]
[1728567709112,0.0004,60884.0,60883.0,0.082202]
[1728567709418,0.082602,60884.0,60883.0,0.082202]
[1728567710720,0.082206,60882.0,60881.0,0.082204]
[1728567711027,0.082208,60879.0,60878.0,0.093207]
[1728567711223,0.082608,60879.0,60878.0,0.093207]
[1728567711622,0.0004,60879.0,60878.0,0.083207]
[1728567712017,0.0004,60879.0,60878.0,0.52600355]
[1728567712219,0.0004,60879.0,60878.0,0.083207]
[1728567712425,0.0014,60879.0,60878.0,0.093207]
[1728567712635,0.0014,60879.0,60878.0,0.454007]
[1728567712818,0.0014,60879.0,60878.0,1.67094515]
[1728567713134,0.0014,60879.0,60878.0,1.66994515]
[1728567713720,0.0014,60879.0,60878.0,1.545807]
[1728567714131,0.0024,60879.0,60878.0,1.548807]
[1728567715034,0.0024,60879.0,60878.0,1.57451059]
[1728567715733,0.0004,60888.0,60887.0,0.082197]
[1728567716029,0.0004,60891.0,60888.0,0.082195]
[1728567716221,0.0004,60891.0,60890.0,0.082193]
[1728567717319,0.0004,60891.0,60890.0,1.174873]
[1728567717524,0.0004,60898.0,60890.0,1.174873]
[1728567717525,0.0004,60898.0,60892.0,0.08219]
[1728567717723,0.0004,60898.0,60892.0,0.63299]
[1728567717924,0.0004,60898.0,60892.0,1.12567]
[1728567718224,0.1904,60898.0,60892.0,0.93567]
[1728567718623,0.1904,60898.0,60892.0,1.53567]
[1728567718824,0.1904,60898.0,60892.0,0.93567]
[1728567719020,0.1904,60898.0,60892.0,1.53567]
[1728567720728,0.1904,60898.0,60892.0,0.44299]
[1728567720729,0.0044,60893.0,60892.0,0.44299]
[1728567721527,0.0064,60893.0,60892.0,0.44299]
[1728567721931,0.088589,60893.0,60892.0,0.44299]
[1728567722431,0.088589,60893.0,60892.0,0.08219]
[1728567722833,0.082191,60891.0,60890.0,0.0004]
[1728567723132,0.272591,60891.0,60890.0,0.0004]
[1728567723934,0.1904,60891.0,60890.0,0.082593]
[1728567724439,0.1914,60891.0,60890.0,0.443393]
[1728567724643,0.0014,60891.0,60890.0,0.443393]
[1728567725432,0.0024,60891.0,60890.0,0.46149841]
[1728567727036,0.0004,60898.0,60890.0,0.46149841]
[1728567727037,0.0004,60898.0,60892.0,0.08259]
[1728567727332,0.0004,60898.0,60897.0,0.442983]
[1728567727538,0.0004,60898.0,60897.0,0.632983]
[1728567727737,0.0004,60898.0,60897.0,1.725623]
[1728567728340,0.0034,60898.0,60897.0,1.725623]
[1728567728942,0.0064,60898.0,60897.0,1.725623]
[1728567729140,0.0064,60898.0,60897.0,1.74413984]
[1728567729333,0.0004,60902.0,60897.0,1.74513984]
[1728567729537,0.0004,60902.0,60901.0,0.272178]
[1728567729732,0.0004,60910.0,60904.0,0.082174]
[1728567729937,0.0004,60910.0,60907.0,0.5508]
[1728567730138,0.0004,60910.0,60909.0,0.082167]
[1728567731132,0.0004,60910.0,60909.0,1.174687]
[1728567731335,0.004,60910.0,60909.0,1.174687]
[1728567731540,0.0004,60917.0,60913.0,0.082162]
[1728567731933,0.0004,60917.0,60913.0,0.442962]
[1728567732742,0.2804,60917.0,60913.0,0.455962]
[1728567733432,0.362556,60917.0,60913.0,0.455962]
[1728567733736,0.2804,60917.0,60913.0,0.455962]
[1728567734838,0.082557,60917.0,60913.0,0.442962]
[1728567735042,0.082557,60917.0,60913.0,0.451962]
[1728567735435,0.0004,60917.0,60913.0,0.442962]
[1728567735637,0.0004,60917.0,60913.0,0.449962]
[1728567736548,0.0014,60914.0,60913.0,1.549482]
[1728567737030,0.0014,60914.0,60913.0,0.942482]
[1728567737234,0.0014,60914.0,60913.0,1.550482]
[1728567737637,0.0014,60914.0,60913.0,1.543482]
[1728567737939,0.0014,60914.0,60913.0,0.950482]
[1728567738346,0.0014,60914.0,60913.0,0.951482]
[1728567738844,0.0014,60914.0,60913.0,1.543482]
[1728567739048,0.0014,60914.0,60913.0,1.550482]
[1728567739541,0.0014,60914.0,60913.0,0.3758]
[1728567739542,0.08356,60914.0,60913.0,0.3758]
[1728567739748,0.082166,60910.0,60909.0,0.0004]
[1728567740139,0.082166,60910.0,60909.0,0.082567]
[1728567740140,0.082566,60910.0,60909.0,0.082567]
[1728567740449,0.0004,60910.0,60909.0,0.082567]
[1728567741142,0.0004,60910.0,60909.0,0.093567]
[1728567741645,0.0004,60910.0,60909.0,0.082567]
[1728567741844,0.0004,60910.0,60909.0,0.093567]
[1728567742736,0.0014,60910.0,60909.0,0.096567]
[1728567743047,0.0014,60910.0,60909.0,1.189087]
[1728567743451,0.0014,60910.0,60909.0,1.183087]
[1728567743641,0.0024,60910.0,60909.0,1.183087]
[1728567743839,0.0004,60914.0,60909.0,1.183087]
[1728567743840,0.0004,60914.0,60913.0,0.082162]
[1728567744337,0.0004,60914.0,60913.0,0.442962]
[1728567745253,0.0014,60914.0,60913.0,0.448962]
[1728567745640,0.0014,60914.0,60913.0,0.46728939]
[1728567747943,0.0024,60914.0,60913.0,0.47228939]
[1728567752049,0.0024,60914.0,60913.0,0.66228939]
[1728567753750,0.0004,60924.0,60923.0,0.082148]
[1728567755354,0.0044,60924.0,60922.0,0.12115466]
[1728567755657,0.0004,60923.0,60919.0,0.5508]
[1728567755860,0.0004,60923.0,60922.0,0.27215]
[1728567756147,0.0004,60923.0,60922.0,0.08215]
[1728567756347,0.082548,60923.0,60922.0,0.08215]
[1728567757446,0.085548,60923.0,60922.0,0.08215]
[1728567757644,0.275548,60923.0,60922.0,0.08215]
[1728567757953,0.275548,60923.0,60919.0,0.36164]
[1728567757954,0.082154,60920.0,60919.0,0.082152]
[1728567758147,0.39179181,60923.0,60922.0,0.08215]
[1728567758345,0.278548,60923.0,60922.0,0.08215]
[1728567758743,0.082154,60920.0,60919.0,0.082151]
[1728567758953,0.082554,60920.0,60919.0,0.082151]
[1728567759860,0.082156,60917.0,60916.0,0.082557]
[1728567760047,0.082556,60917.0,60916.0,0.082557]
[1728567761148,0.082556,60917.0,60916.0,0.085557]
[1728567762352,0.0004,60917.0,60916.0,0.085557]
[1728567763156,0.0004,60923.0,60916.0,1.178037]
[1728567763453,0.0004,60923.0,60922.0,0.27215]
[1728567763648,0.0004,60923.0,60922.0,0.63295]
[1728567763848,0.0004,60923.0,60922.0,1.45295]
[1728567764354,0.0004,60923.0,60922.0,0.63295]
[1728567764657,0.0034,60923.0,60922.0,0.63295]
[1728567765363,0.1934,60923.0,60919.0,0.00124]
[1728567765544,0.272552,60920.0,60919.0,0.0004]
[1728567766754,0.272552,60920.0,60919.0,0.082554]
[1728567766948,0.272552,60920.0,60919.0,0.0004]
[1728567767656,0.272552,60920.0,60919.0,0.082554]
[1728567768060,0.272552,60920.0,60919.0,0.0004]
[1728567768252,0.272552,60920.0,60919.0,0.082554]
[1728567768555,0.0004,60920.0,60919.0,0.443354]
[1728567768955,0.0004,60920.0,60919.0,0.50901221]
[1728567769166,0.0014,60920.0,60919.0,0.443354]
[1728567769460,0.0014,60920.0,60919.0,0.50901221]
[1728567769660,0.0014,60920.0,60919.0,0.935794]
[1728567769867,0.0024,60920.0,60919.0,0.935794]
[1728567770049,0.0004,60923.0,60922.0,0.08215]
[1728567770360,0.082136,60932.0,60923.0,0.082148]
[1728567770560,0.01860638,60936.0,60923.0,0.14778235]
[1728567770561,0.082133,60935.0,60923.0,0.14778235]
[1728567770755,0.082136,60932.0,60923.0,0.082148]
[1728567771459,0.5508,60937.0,60923.0,0.14778235]
[1728567771758,0.082133,60935.0,60923.0,0.082148]
[1728567771960,0.0044,60924.0,60923.0,0.082148]
[1728567772157,0.0645,60939.0,60923.0,1.34807435]
[1728567772358,0.0645,60939.0,60933.0,0.632935]
[1728567772549,0.08213,60937.0,60933.0,0.632935]
[1728567773366,0.16426,60937.0,60933.0,0.632935]
[1728567773560,0.0064,60934.0,60933.0,0.633935]
[1728567774254,0.088533,60934.0,60933.0,0.633935]
[1728567775267,0.092533,60934.0,60933.0,0.633935]
[1728567776070,0.102533,60934.0,60933.0,0.65319094]
[1728567776566,0.102533,60934.0,60933.0,0.084135]
[1728567776771,0.292533,60934.0,60933.0,0.084135]
[1728567777560,0.292533,60934.0,60933.0,0.002]
[1728567778366,0.292533,60934.0,60926.0,0.082144]
[1728567778555,0.292533,60934.0,60919.0,0.0004]
[1728567778556,0.272543,60927.0,60919.0,0.0004]
[1728567778763,0.082547,60924.0,60923.0,0.082547]
[1728567778956,0.082547,60924.0,60923.0,0.10060276]
[1728567780073,0.082547,60924.0,60923.0,0.29060276]
[1728567780264,0.0004,60924.0,60923.0,0.29060276]
[1728567780870,0.0004,60924.0,60923.0,0.65140276]
[1728567781461,0.0044,60924.0,60923.0,0.65140276]
[1728567781658,0.0084,60924.0,60923.0,0.65140276]
[1728567782573,0.0004,60934.0,60923.0,0.82487647]
[1728567782768,0.0004,60934.0,60933.0,0.272135]
[1728567783267,0.082533,60934.0,60933.0,0.272135]
[1728567783771,0.082533,60934.0,60930.0,0.19]
[1728567784070,0.082139,60930.0,60926.0,0.0004]
[1728567784373,0.633343,60927.0,60926.0,0.0004]
[1728567784570,0.082147,60924.0,60923.0,0.0008]
[1728567784868,0.272547,60924.0,60923.0,0.0008]
[1728567785276,0.272547,60924.0,60923.0,0.082948]
[1728567785472,0.082547,60924.0,60923.0,0.082948]
[1728567785673,0.0004,60924.0,60923.0,0.082948]
[1728567785973,0.0034,60924.0,60923.0,0.082948]
[1728567787568,0.0074,60924.0,60923.0,0.082948]
[1728567793386,0.0004,60931.0,60923.0,0.1908]
[1728567793573,0.0004,60931.0,60930.0,0.442939]
[1728567794077,0.0004,60940.0,60939.0,0.082127]
[1728567794275,0.0004,60940.0,60939.0,1.125207]
[1728567795077,0.0004,60948.0,60939.0,0.7408]
[1728567795279,0.082105,60956.0,60947.0,0.272116]
[1728567795480,0.3608,60960.0,60950.0,0.272112]
[1728567795779,0.082103,60957.0,60950.0,0.272112]
[1728567795984,0.442907,60954.0,60950.0,0.272112]
[1728567796282,0.442907,60954.0,60947.0,0.018832]
[1728567796283,0.082115,60948.0,60947.0,0.0004]
[1728567796779,0.082515,60948.0,60947.0,0.082516]
[1728567796976,0.082515,60948.0,60947.0,0.083516]
[1728567797482,0.082515,60948.0,60947.0,0.082516]
[1728567797483,0.0004,60948.0,60947.0,0.082516]
[1728567797682,0.0004,60948.0,60947.0,0.083516]
[1728567798980,0.0004,60948.0,60947.0,0.444316]
[1728567800179,0.0004,60948.0,60947.0,0.445316]
[1728567800588,0.0004,60948.0,60947.0,0.084516]
[1728567800771,0.0004,60948.0,60947.0,0.445316]
[1728567801287,0.082515,60948.0,60947.0,0.083516]
[1728567801475,0.090515,60948.0,60947.0,0.0024]
[1728567801682,0.090515,60948.0,60947.0,0.084516]
[1728567802274,0.090515,60948.0,60947.0,0.0024]
[1728567802589,0.280515,60948.0,60947.0,0.0024]
[1728567802882,0.280515,60948.0,60947.0,0.084516]
[1728567803082,0.280515,60948.0,60947.0,0.0024]
[1728567803397,0.280515,60948.0,60947.0,0.084516]
[1728567803977,0.090515,60948.0,60947.0,0.084516]
[1728567810483,0.090515,60948.0,60947.0,0.0024]
[1728567810683,0.090515,60948.0,60947.0,0.084516]
[1728567811592,0.12223958,60948.0,60947.0,0.0024]
[1728567811995,0.12223958,60948.0,60947.0,0.084516]
[1728567812200,0.090515,60948.0,60947.0,0.0024]
[1728567813394,0.090515,60948.0,60947.0,0.084516]
[1728567814392,0.090515,60948.0,60947.0,0.0024]
[1728567814987,0.090515,60948.0,60947.0,0.084516]
[1728567818292,0.0084,60948.0,60947.0,0.274516]
[1728567819396,0.0084,60948.0,60947.0,0.340516]
[1728567820100,1e-08,60948.0,60947.0,0.340516]
[1728567821008,1e-08,60948.0,60947.0,0.274516]
[1728567821203,0.19000001,60948.0,60947.0,0.0024]
[1728567821397,0.30383382,60948.0,60947.0,0.0024]
[1728567821592,0.45849189,60948.0,60947.0,0.0024]
[1728567821788,0.34404909,60948.0,60947.0,0.0024]
[1728567822204,0.15404909,60948.0,60947.0,0.084516]
[1728567823503,0.03171882,60948.0,60947.0,0.084516]
[1728567823689,0.11473557,60948.0,60947.0,0.084516]
[1728567823896,0.03171882,60948.0,60947.0,0.084516]
[1728567825001,0.11473557,60948.0,60947.0,0.084516]
[1728567825394,0.1464557,60948.0,60947.0,0.084516]
[1728567825595,0.19685057,60948.0,60947.0,0.0024]
[1728567825792,0.15404939,60948.0,60947.0,0.0024]
[1728567826001,0.15404939,60948.0,60947.0,0.084516]
[1728567827200,0.08211501,60948.0,60947.0,0.084516]
[1728567827598,0.08211501,60948.0,60947.0,0.13373535]
[1728567828405,0.08211501,60948.0,60947.0,0.05161935]
[1728567828704,0.08211501,60948.0,60947.0,0.0024]
[1728567829304,0.08211501,60948.0,60947.0,0.05161935]
[1728567829696,0.27211501,60948.0,60947.0,0.05161935]
[1728567829895,0.27211501,60948.0,60947.0,0.0024]
[1728567830290,0.27211501,60948.0,60947.0,0.084516]
[1728567831304,0.27211501,60948.0,60947.0,0.13374116]
[1728567832106,0.08211501,60948.0,60947.0,0.13374116]
[1728567832300,0.76435501,60948.0,60947.0,0.0024]
[1728567832904,0.27211501,60948.0,60947.0,0.0024]
[1728567833410,0.76435501,60948.0,60947.0,0.0024]
[1728567833600,1.36435501,60948.0,60947.0,0.0024]
[1728567834516,1.36435501,60948.0,60939.0,0.0004]
[1728567834517,0.082121,60943.0,60939.0,0.0004]
[1728567834707,0.632925,60940.0,60939.0,0.0004]
[1728567834903,0.633325,60940.0,60939.0,0.0004]
[1728567835202,0.633325,60940.0,60930.0,0.0496279]
[1728567835203,0.082133,60934.0,60930.0,0.0496279]
[1728567835505,0.082533,60934.0,60932.0,0.082135]
[1728567837102,0.082533,60934.0,60933.0,0.082535]
[1728567837806,0.082533,60934.0,60933.0,0.088535]
[1728567838005,0.083533,60934.0,60933.0,0.095535]
[1728567838401,0.0044,60934.0,60933.0,0.089535]
[1728567838602,0.0044,60934.0,60933.0,0.279535]
[1728567839108,0.0054,60934.0,60933.0,0.272535]
[1728567839305,0.0054,60934.0,60933.0,0.633335]
[1728567839903,0.0054,60934.0,60933.0,0.6825629]
[1728567840099,0.0044,60934.0,60933.0,0.6825629]
[1728567840503,0.0044,60934.0,60933.0,0.633335]
[1728567840704,0.0044,60934.0,60933.0,0.71674293]
[1728567840912,0.0024,60934.0,60933.0,0.71674293]
[1728567841101,0.001,60934.0,60933.0,0.65122149]
[1728567841499,0.083133,60934.0,60933.0,0.443335]
[1728567841704,0.082133,60934.0,60933.0,0.443335]
[1728567841905,0.082133,60934.0,60933.0,0.450335]
[1728567842115,0.082133,60934.0,60933.0,0.0074]
[1728567842906,0.442933,60934.0,60933.0,0.0074]
[1728567843312,1.535293,60934.0,60930.0,0.0004]
[1728567843539,0.272537,60931.0,60930.0,0.0004]
[1728567843906,0.954897,60931.0,60926.0,0.0004]
[1728567844108,0.462143,60927.0,60926.0,0.0004]
[1728567844305,0.462543,60927.0,60926.0,0.0004]
[1728567844504,1.915743,60927.0,60926.0,0.0004]
[1728567844921,1.915743,60927.0,60922.0,0.0004]
[1728567844922,0.082147,60924.0,60922.0,0.0004]
[1728567845217,0.272547,60924.0,60922.0,0.0004]
[1728567847007,0.272547,60924.0,60923.0,0.0032]
[1728567847515,0.272547,60924.0,60923.0,0.0042]
[1728567848623,0.272547,60924.0,60916.0,0.0004]
[1728567848624,0.082152,60920.0,60916.0,0.0004]
[1728567848815,0.272156,60917.0,60916.0,0.0004]
[1728567849120,0.272556,60917.0,60916.0,0.0004]
[1728567850519,0.0004,60917.0,60916.0,0.272558]
[1728567851120,0.082556,60917.0,60916.0,0.100558]
[1728567851816,0.0004,60917.0,60916.0,0.281558]
[1728567852119,0.0014,60917.0,60916.0,0.290558]
[1728567852426,0.0004,60924.0,60923.0,0.082148]
[1728567852621,0.0004,60924.0,60923.0,0.632948]
[1728567852827,0.0004,60924.0,60923.0,0.68193498]
[1728567853022,0.0004,60924.0,60923.0,0.632948]
[1728567853329,0.0004,60931.0,60926.0,0.082144]
[1728567853626,0.0004,60931.0,60926.0,0.272144]
[1728567854016,0.0004,60931.0,60926.0,0.32113279]
[1728567854217,0.0004,60931.0,60926.0,0.272144]
[1728567854416,0.0004,60931.0,60926.0,0.29026862]
[1728567854827,0.0024,60927.0,60926.0,0.29026862]
[1728567855323,0.0034,60927.0,60926.0,0.33927742]
[1728567855527,0.0034,60927.0,60926.0,0.29026862]
[1728567857427,0.1934,60927.0,60926.0,0.082144]
[1728567857731,0.0034,60927.0,60926.0,0.082144]
[1728567858122,0.275543,60927.0,60926.0,0.082144]
[1728567858544,0.0034,60927.0,60926.0,0.082144]
[1728567859322,0.275543,60927.0,60924.0,0.082146]
[1728567859535,0.0004,60925.0,60924.0,0.082146]
[1728567860123,0.082547,60925.0,60924.0,0.082146]
[1728567860527,0.082547,60925.0,60924.0,0.002]
[1728567860720,0.443347,60925.0,60924.0,0.002]
[1728567860920,0.500447,60925.0,60924.0,0.001]
[1728567861127,0.992847,60925.0,60924.0,0.002]
[1728567861323,1.592847,60925.0,60924.0,0.002]
[1728567861620,1.61059241,60925.0,60924.0,0.002]
[1728567862017,1.61059241,60925.0,60916.0,0.0008]
[1728567862018,0.082156,60917.0,60916.0,0.082957]
[1728567862231,0.272556,60917.0,60916.0,0.082957]
[1728567863225,0.272556,60917.0,60916.0,0.091957]
[1728567863422,0.1904,60917.0,60916.0,0.091957]
[1728567863630,0.0004,60917.0,60916.0,0.452757]
[1728567864141,0.0004,60917.0,60916.0,0.65664863]
[1728567864329,0.083556,60917.0,60916.0,0.100957]
[1728567866042,0.083556,60917.0,60916.0,0.0188]
[1728567866222,0.141356,60917.0,60916.0,0.0188]
[1728567866628,0.141356,60917.0,60909.0,0.0008]
[1728567866629,0.082166,60910.0,60909.0,0.0008]
[1728567866829,0.272166,60910.0,60909.0,0.0008]
[1728567867029,0.272566,60910.0,60909.0,0.0008]
[1728567867834,0.273566,60910.0,60909.0,0.0148]
[1728567868239,0.273566,60910.0,60909.0,0.096967]
[1728567868434,0.273566,60910.0,60909.0,0.110967]
[1728567868631,0.083566,60910.0,60909.0,0.110967]
[1728567868837,0.0014,60910.0,60909.0,0.300967]
[1728567869146,0.0014,60910.0,60909.0,0.471767]
[1728567870146,0.0014,60910.0,60909.0,0.49024028]
[1728567871436,0.082557,60917.0,60909.0,0.67644208]
[1728567871639,0.082557,60917.0,60916.0,0.082158]
[1728567872030,0.0004,60917.0,60916.0,0.1640663]
[1728567872231,0.0004,60917.0,60916.0,0.3428683]
[1728567872441,0.0004,60917.0,60916.0,0.2204663]
[1728567872642,0.0004,60917.0,60916.0,0.26094875]
[1728567873132,0.0014,60917.0,60916.0,0.26894875]
[1728567873638,0.0577,60924.0,60916.0,0.26894875]
[1728567873639,0.409047,60925.0,60924.0,0.082147]
[1728567873832,0.409047,60925.0,60924.0,0.20426667]
[1728567874132,0.409047,60925.0,60924.0,0.28617493]
[1728567874841,0.409047,60925.0,60924.0,0.16405526]
[1728567875042,0.409047,60925.0,60924.0,0.28612206]
[1728567875243,0.409047,60925.0,60924.0,0.082147]
[1728567876646,0.082547,60925.0,60924.0,0.1001263]
[1728567878441,0.0004,60931.0,60926.0,0.082144]
[1728567878649,0.3608,60943.0,60934.0,0.082132]
[1728567878841,0.3608,60943.0,60939.0,0.272127]
[1728567878842,0.00144,60943.0,60939.0,0.272127]
[1728567879146,0.08212,60944.0,60939.0,0.39412824]
[1728567879343,0.082121,60943.0,60939.0,0.272127]
[1728567879649,0.2451,60948.0,60939.0,0.272127]
[1728567879847,0.082125,60941.0,60939.0,0.082127]
[1728567880033,0.19,60945.0,60939.0,0.082127]
[1728567880237,0.082525,60940.0,60939.0,0.082127]
[1728567881455,0.082525,60940.0,60927.0,0.11010865]
[1728567881456,0.082525,60940.0,60926.0,0.04910865]
[1728567881653,0.632937,60931.0,60930.0,0.0004]
[1728567881859,0.633337,60931.0,60930.0,0.0004]
[1728567882653,0.272537,60931.0,60930.0,0.0004]
[1728567882963,0.639337,60931.0,60930.0,0.0014]
[1728567883265,0.082156,60919.0,60918.0,0.082154]
[1728567883461,0.272556,60919.0,60918.0,0.082154]
[1728567884260,0.082156,60917.0,60916.0,0.0004]
[1728567884558,0.082556,60917.0,60916.0,0.0004]
[1728567885460,0.083556,60917.0,60916.0,0.0074]
[1728567886057,0.10154796,60917.0,60916.0,0.0074]
[1728567886969,0.10254796,60917.0,60916.0,0.0154]
[1728567888670,0.082166,60910.0,60909.0,0.0012]
[1728567888859,0.272166,60910.0,60909.0,0.083367]
[1728567889061,0.272566,60910.0,60909.0,0.083367]
[1728567889466,0.082566,60910.0,60909.0,0.13247565]
[1728567889862,0.0024,60917.0,60909.0,0.273367]
[1728567890063,0.082161,60915.0,60914.0,0.082159]
[1728567891771,0.082161,60915.0,60909.0,0.0156]
[1728567891965,0.083566,60910.0,60909.0,0.0156]
[1728567892268,0.083566,60910.0,60909.0,0.083767]
[1728567892861,0.083566,60910.0,60909.0,0.085767]
[1728567893279,0.082566,60910.0,60909.0,0.085767]
[1728567893464,0.083566,60910.0,60909.0,0.085767]
[1728567893664,0.0014,60910.0,60909.0,0.085767]
[1728567894168,0.0014,60910.0,60909.0,0.13487565]
[1728567894365,0.0014,60910.0,60909.0,0.085767]
[1728567895163,0.0024,60910.0,60909.0,0.085767]
[1728567896061,0.084566,60910.0,60909.0,0.085767]
[1728567900271,0.274566,60910.0,60909.0,0.0036]
[1728567900972,0.082169,60908.0,60907.0,0.0004]
[1728567901277,0.082177,60902.0,60901.0,0.0004]
[1728567901464,0.19,60902.0,60889.0,0.04910865]
[1728567901669,0.632982,60898.0,60889.0,0.082194]
[1728567901863,0.632982,60898.0,60888.0,0.0004]
[1728567901864,0.633382,60898.0,60891.0,0.082191]
[1728567902064,0.633382,60898.0,60888.0,0.0004]
[1728567902264,0.633382,60898.0,60888.0,0.082595]
[1728567902777,0.633382,60898.0,60889.0,0.082194]
[1728567902976,0.082189,60893.0,60888.0,0.0004]
[1728567903180,0.462589,60893.0,60888.0,0.0004]
[1728567903478,0.082191,60891.0,60888.0,0.0004]
[1728567903670,0.082591,60891.0,60888.0,0.0004]
[1728567903867,0.0004,60891.0,60887.0,0.0004]
[1728567904068,0.082201,60884.0,60883.0,0.0004]
[1728567904270,0.082201,60884.0,60877.0,0.08221]
[1728567904271,0.082208,60879.0,60877.0,0.08221]
[1728567904468,0.272208,60879.0,60873.0,0.0004]
[1728567905071,0.272608,60879.0,60876.0,0.083011]
[1728567905264,0.272608,60879.0,60876.0,0.0008]
[1728567905670,0.273608,60879.0,60876.0,0.0008]
[1728567906474,0.272608,60879.0,60876.0,0.0008]
[1728567906670,0.362608,60879.0,60878.0,0.0024]
[1728567907572,0.082229,60865.0,60864.0,0.082226]
[1728567907970,0.082629,60865.0,60864.0,0.082226]
[1728567908370,0.082629,60865.0,60864.0,0.443026]
[1728567908571,0.082629,60865.0,60864.0,0.082226]
[1728567908872,0.083629,60865.0,60864.0,0.082226]
[1728567909262,0.0024,60865.0,60864.0,0.449026]
[1728567909674,0.082221,60870.0,60864.0,0.449426]
[1728567909978,0.082221,60870.0,60869.0,0.082221]
[1728567910379,0.362221,60870.0,60864.0,0.05550865]
[1728567910677,0.362221,60870.0,60864.0,0.0064]
[1728567910678,0.082227,60867.0,60864.0,0.0064]
[1728567910876,0.28,60866.0,60864.0,0.088627]
[1728567911076,0.082227,60865.0,60864.0,0.089627]
[1728567911269,0.082227,60865.0,60864.0,0.13873565]
[1728567911568,0.082227,60865.0,60864.0,0.0074]
[1728567911770,0.443027,60865.0,60864.0,0.0074]
[1728567911974,0.443027,60865.0,60864.0,0.089628]
[1728567912872,0.444027,60865.0,60864.0,0.089628]
[1728567913170,0.083227,60865.0,60864.0,0.083628]
[1728567913374,0.001,60865.0,60864.0,0.083628]
[1728567913566,0.28,60866.0,60865.0,0.082227]
[1728567913873,0.362225,60866.0,60865.0,0.082227]
[1728567914873,0.363225,60866.0,60865.0,0.083227]
[1728567915079,0.363225,60866.0,60865.0,0.001]
[1728567915280,1.456105,60866.0,60865.0,0.001]
[1728567915465,0.082239,60856.0,60853.0,0.04910865]
[1728567915670,0.082239,60856.0,60850.0,0.0654782]